Cogmind - Beta 13 @@@ ROGUE MODE // 2024.04.10 @ 11:33:23 Player: Rocketboy Result: Destroyed by Autobeam Turret with Autobeam Performance ------------- Evolutions (0) 0 Regions Visited (2) 400 Robots Destroyed (24) 120 Value Destroyed (451) 451 Prototype IDs (0) 0 Alien Tech Used (0) 0 Bonus (0) 0 TOTAL SCORE: 971 Bonus ------- None Cogmind --------- Core Integrity 0/250 Matter 280/300 Energy 99/100 System Corruption 0% Temperature Cool (14) Movement Hovering (56) Location -10/Subcaves Parts ------- > --- POWER (1) -------- (None) > --- PROPULSION (2) --- Hover Unit Hover Unit > --- UTILITY (2) ------ Medium Storage Unit Improved Terrain Scanner > --- WEAPON (2) ------- (None) > --- INVENTORY (10) --- Ion Engine Light Nuclear Core Hover Unit Sensor Array Hacking Suite Datajack Mining Laser Peak State ------------ > --- POWER ------------ Light Nuclear Core > --- PROPULSION ------- Aluminum Leg Aluminum Leg > --- UTILITY ---------- Small Storage Unit Improved Terrain Scanner > --- WEAPON ----------- Particle Gun Light Cannon > --- INVENTORY -------- Ion Engine Light Ion Engine Aluminum Leg Aluminum Leg Aluminum Leg Improved Heat Sink Small Laser Small Laser [Rating: 13] Favorites ----------- Power Light Ion Engine Engine Light Ion Engine Power Core Light Nuclear Core Propulsion Aluminum Leg Leg Aluminum Leg Hover Unit Hover Unit Utility Improved Terrain Scanner Device Improved Terrain Scanner Storage Medium Storage Unit Weapon Particle Gun Energy Gun Particle Gun Ballistic Gun Assault Rifle Ballistic Cannon Light Cannon Special Weapon Mining Laser Special Melee Weapon Datajack Build | -11 -10 -10 ------- Run | Yrd Mat Sub Slots Evolved . | . . . Power . | . . . Propulsion . | . . . Utility . | . . . Weapon . | . . . Parts Attached 30 | 7 19 4 Power 6 | 1 5 . Engine 5 | 1 4 . Core 1 | . 1 . Reactor . | . . . Propulsion 7 | 2 2 3 Treads . | . . . Leg 4 | 2 2 . Wheel . | . . . Hover 3 | . . 3 Flight . | . . . Utility 3 | 2 1 . Device 1 | 1 . . Storage 2 | 1 1 . Processor . | . . . Hackware . | . . . Protection . | . . . Artifact . | . . . Weapon 14 | 2 11 1 Energy Gun 3 | 1 2 . Energy Cannon . | . . . Ballistic Gun 4 | 1 2 1 Ballistic Cannon 3 | . 3 . Launcher . | . . . Special Weapon 2 | . 2 . Impact Weapon . | . . . Slashing Weapon . | . . . Piercing Weapon . | . . . Special Melee Weapon 2 | . 2 . Unidentified Prototypes . | . . . Parts Lost 6 | . . 6 Power 1 | . . 1 Propulsion 3 | . . 3 Utility . | . . . Weapon 2 | . . 2 Highest Loss Streak 6 | . . 6 To Critical Strikes . | . . . Average Slot Usage (%) 99 | . 99 97 Engine 11 | . 11 14 Core 1 | . 2 . Leg 27 | . 27 24 Device 14 | . 14 14 Storage 14 | . 14 14 Energy Gun 15 | . 15 14 Ballistic Gun 2 | . 2 12 Ballistic Cannon 5 | . 5 . Special Melee Weapon 3 | . 4 . Naked Turns . | . . . Heaviest Build 20 | 14 20 19 Greatest Support 20 | 20 20 20 Greatest Overweight (x) 1 | . . 1 Average Overweight (x) . | . . . Largest Inventory Capacity 10 | 8 10 10 Average Capacity 9 | 5 9 10 Most Carried 10 | 2 10 10 Average Carried 8 | 1 9 9 Final Capacity 10 | 8 10 10 Final Carried 10 | 2 10 7 Class Distribution -------------------- 87% | Mutant 12% | Scavenger-Mutant Dominant Class ---------------- Mutant | -10/Materials Mutant | -10/Subcaves Resources | -11 -10 -10 ----------- Run | Yrd Mat Sub Matter Collected 695 | 288 380 27 Remotely . | . . . Salvage Created 680 | 88 553 39 Parts 54 | 8 40 6 Haulers Intercepted 1 | . 1 . Recyclers Shooed 1 | 1 . . Parts Field Recycled . | . . . Retrieved Matter . | . . . Parts Self-Destructed 9 | . . 9 Prevented . | . . . Kills | -11 -10 -10 ------- Run | Yrd Mat Sub Combat Hostiles Destroyed 11 | . 8 3 Guns 8 | . 5 3 Cannons 3 | . 3 . Classes Destroyed 9 | 2 6 1 Worker 1 | . 1 . Builder 2 | . 2 . Tunneler 3 | 1 2 . Hauler 1 | . 1 . Recycler 2 | 1 1 . Operator 1 | . 1 . Watcher 3 | . 3 . Swarmer 3 | . . 3 Grunt 8 | . 8 . Best Kill Streak 4 | 1 4 3 Combat Bots Only 3 | . 3 3 Max Kills in Single Turn 1 | 1 1 1 Gunslinging . | . . . Exploded . | . . . Melee . | . . . Uniques/NPCs Destroyed . | . . . Combat | -11 -10 -10 -------- Run | Yrd Mat Sub Hostile Shots Fired 171 | . 37 134 Missed 72 | . 9 63 Damage Taken 943 | . 346 597 Core 252 | . 92 160 Absorbed by Shields . | . . . Regen/Repaired (Parts) 69 | . 69 . Core Remaining (%) 100 | 100 . . Volleys Fired 105 | 6 90 9 Largest 2 | 2 2 2 Hottest 105 | 60 105 85 Shots Fired 188 | 12 158 18 Gun 145 | 12 115 18 Cannon 38 | . 38 . Launcher . | . . . Special 5 | . 5 . Kinetic 69 | 6 54 9 Thermal 119 | 6 104 9 Explosive . | . . . Electromagnetic . | . . . Robot Hit Streak 8 | 5 8 7 Robot Miss Streak 5 | 2 5 3 Penetration Max . | . . . Secondary Targets 2 | . . 2 Max Gunslinging Chain 1 | . . 1 Shots Hit Robots 87 | 8 69 10 Core Hits 33 | 3 25 5 Critical Kills . | . . . Critical Parts Destroyed . | . . . Critical Strikes 1 | . 1 . Burn 1 | . 1 . Melee Attacks 6 | . 6 . Impact . | . . . Slashing . | . . . Piercing . | . . . Sneak Attacks 3 | . 3 . Combat Hostiles . | . . . Follow-up Attacks . | . . . Damage Inflicted 1311 | 100 1065 146 Guns 914 | 100 668 146 Cannons 397 | . 397 . Explosions . | . . . Melee . | . . . Ramming . | . . . Kinetic 624 | 55 520 49 Thermal 687 | 45 545 97 Explosive . | . . . Electromagnetic . | . . . Impact . | . . . Slashing . | . . . Piercing . | . . . Highest Corruption . | . . . Average Corruption . | . . . Corruption Purged . | . . . Corruption Blocked . | . . . Overload Shots . | . . . Overflow Damage 5 | . 5 . Projectiles 5 | . 5 . Explosions . | . . . Melee . | . . . Knockbacks 7 | . 7 . Impact . | . . . Kinetic 7 | . 7 . Secondary . | . . . Self-Inflicted Damage . | . . . Shots . | . . . Rammed . | . . . Targets Rammed . | . . . Kicked . | . . . Crushed . | . . . Highest Temperature 261 | . 261 6 Average Temperature 72 | . 72 6 Received Heat Transfer 585 | . 198 387 Effects 3 | . 3 . Energy Bleed 1 | . 1 . Interference 2 | . 2 . Siege Activations . | . . . Robots Corrupted . | . . . Combat Hostiles . | . . . Parts Fried . | . . . Impact Corruptions . | . . . Robots Melted . | . . . Combat Hostiles . | . . . Parts Melted 1 | . 1 . Heat Transferred 1643 | 100 1321 222 Parts Sabotaged . | . . . Parts Stolen . | . . . Parts Stripped . | . . . Power Chain Reactions . | . . . Alert | -11 -10 -10 ------- Run | Yrd Mat Sub Peak Influence 223 | 10 223 . Initial 6 | . 6 . Average 54 | 4 58 . Maximum Alert Level 1 | . 1 . Low Security (%) 96 | 100 95 . Level 1 3 | . 4 . Level 2 . | . . . Level 3 . | . . . Level 4 . | . . . Level 5 . | . . . High Security . | . . . Max Security . | . . . Squads Dispatched 1 | . 1 . Investigation . | . . . Extermination . | . . . Reinforcement 1 | . 1 . Assault . | . . . Garrison . | . . . Intercept . | . . . Searches Triggered . | . . . Construction Impeded . | . . . Haulers Reinforced . | . . . Active Scanning Responses . | . . . Cargo Convoy Interrupts . | . . . Stealth | -11 -10 -10 --------- Run | Yrd Mat Sub Distress Signals 1 | . 1 . Communications Jammed . | . . . Distress Signals . | . . . Times Spotted 101 | . 18 83 Peak Tracking Total 6 | . 3 6 Tactical Retreats 7 | . 2 5 Traps | -11 -10 -10 ------- Run | Yrd Mat Sub Traps Triggered 2 | . 2 . Indirectly . | . . . Trap Hack Attempts . | . . . Triggered . | . . . Disarmed . | . . . Reprogrammed . | . . . Reused . | . . . Traps Extracted . | . . . Installed . | . . . Triggered 1 | . . 1 Machines | -11 -10 -10 ---------- Run | Yrd Mat Sub Machines Disabled 1 | . . 1 Max in Single Turn 1 | . . 1 Machines Repaired . | . . . Machines Dismantled . | . . . Machines Sabotaged . | . . . Overloaded Fab Kills . | . . . Hacking | -11 -10 -10 --------- Run | Yrd Mat Sub Machines Accessed 10 | . 10 . Terminals 7 | . 7 . Fabricators . | . . . Repair Stations 1 | . 1 . Recycling Units 2 | . 2 . Scanalyzers . | . . . Garrison Access . | . . . Total Hacks 35 | . 35 . Successful 21 | . 21 . Failed 14 | . 14 . Catastrophic 1 | . 1 . Database Lockouts . | . . . Manual 29 | . 29 . Terminals 28 | . 28 . Fabricators . | . . . Repair Stations 4 | . 4 . Recycling Units 3 | . 3 . Scanalyzers . | . . . Garrison Access . | . . . Terminal Hacks 4 | . 4 . Robot Analysis 1 | . 1 . Terminal Index 1 | . 1 . Alert Level 1 | . 1 . Zone Layout 1 | . 1 . Fabricator Hacks . | . . . Repair Station Hacks 4 | . 4 . Scan Component 2 | . 2 . Repair 2 | . 2 . Recycling Unit Hacks . | . . . Scanalyzer . | . . . Garrison Access Hacks . | . . . Unauthorized Hacks 13 | . 13 . Terminals 12 | . 12 . Track 4 | . 4 . Botnet 7 | . 7 . Operators 1 | . 1 . Fabricators . | . . . Repair Stations . | . . . Recycling Units 1 | . 1 . Reject 1 | . 1 . Scanalyzers . | . . . Garrison Access . | . . . Data Cores Recovered . | . . . Used . | . . . Hacking Detections 8 | . 8 . Full Trace Events . | . . . Feedback Events . | . . . Feedback Blocked . | . . . Robot Schematics Acquired . | . . . Robots Built . | . . . Authchips . | . . . Time . | . . . Total Robot Build Rating . | . . . Part Schematics Acquired . | . . . Parts Built . | . . . Authchips . | . . . Time . | . . . Total Part Build Rating . | . . . Parts Repaired 2 | . 2 . Time 52 | . 52 . Parts Recycled . | . . . Recycled Matter . | . . . Retrieved Matter . | . . . Retrieved Components . | . . . Parts Scanalyzed . | . . . Part Schematics Acquired . | . . . Parts Damaged . | . . . Bothacking | -11 -10 -10 ------------ Run | Yrd Mat Sub Used RIF Installer . | . . . Robots Hacked 3 | . 3 . Non-combat 3 | . 3 . Combat . | . . . Robot Hacks Applied 4 | . 4 . no_distress 4 | . 4 . Relay Couplers Released . | . . . Fabnet Peak Effective % . | . . . Robots Rewired . | . . . Allies Hacked . | . . . Hacks Repelled . | . . . Allies | -11 -10 -10 -------- Run | Yrd Mat Sub Total Allies . | . . . Largest Group . | . . . Highest-Rated Group . | . . . Highest-Rated Ally . | . . . Total Orders . | . . . Ally Attacks . | . . . Total Damage . | . . . Kills . | . . . Allies Corrupted . | . . . Allies Melted . | . . . Intel | -11 -10 -10 ------- Run | Yrd Mat Sub Robot Analysis Total 1 | . 1 . Derelict Logs Recovered . | . . . Drone Launches . | . . . Drone Recoveries . | . . . Exploration | -11 -10 -10 ------------- Run | Yrd Mat Sub Turns Passed 1822 | 124 1579 119 Spaces Moved 1102 | 81 949 72 Core 4 | 4 . . Treads . | . . . Legs 1093 | 77 949 67 Wheels . | . . . Hover 5 | . . 5 Flight . | . . . Fastest Speed 50 | 50 120 116 Average Speed 119 | 116 120 122 Slowest Speed 190 | 120 120 190 Overloaded Moves . | . . . Propulsion Burnouts . | . . . Robots Hopped . | . . . Cave-ins Triggered . | . . . Exploration Rate (%) 32 | 5 86 6 Regions Visited 2 Branch Regions 1 Pre-discovered Areas . | . . . Known Exits Taken . | . . . Unknown Exits Taken 2 | 1 1 . Scrap Searched . | . . . Spaces Dug 1 | . 1 . Terrain Destroyed 1 | . 1 . Melee . | . . . Projectile 1 | . 1 . AOE . | . . . Terrain Rammed . | . . . Walls Destroyed . | . . . Machines Disabled . | . . . Actions | -11 -10 -10 --------- Run | Yrd Mat Sub Total 1396 | 95 1216 85 Wait 127 | . 127 . Move 1100 | 80 948 72 Hop . | . . . Pick Up 16 | 2 14 . Fast Attach 15 | 7 8 . Attach 3 | . . 3 Detach 1 | . 1 . Swap 12 | . 11 1 Drop 11 | . 11 . Fire 105 | 6 90 9 Melee 6 | . 6 . Ram . | . . . Kick . | . . . Crush . | . . . Escape Stasis . | . . . Rewire . | . . . Trap . | . . . Miscellaneous . | . . . Route ------- -11/Scrapyard -10/Materials (discovered 5 exits: [*Mat x3] / [*Min] / [*Sub]) -10/Subcaves (discovered 1 exit: [*Rec]) History --------- Turn | Location | Event 5 | -11/Scrapyard | Discovered new exit (range 16) 125 | -11/Scrapyard | Entered Materials 351 | -10/Materials | Discovered new exit (range 10) 442 | -10/Materials | Discovered new exit (range 11) 534 | -10/Materials | Discovered new exit (range 9) 542 | -10/Materials | Discovered new exit (range 16) 782 | -10/Materials | Build established: Mutant 1444 | -10/Materials | Discovered new exit (range 3) 1504 | -10/Materials | Repaired Lgt. Ion Engine 1532 | -10/Materials | Repaired Aluminum Leg 1704 | -10/Materials | Entered Subcaves 1704 | -10/Subcaves | Discovered new exit (range 14) 1729 | -10/Subcaves | Core integrity fell below 50% 1815 | -10/Subcaves | Core integrity fell below 20% 1823 | -10/Subcaves | Destroyed by Autobeam Turret with Autobeam Last Messages --------------- S-10 Pest destroyed. Switching to secondary target: S-10 Pest. S-10 Pest destroyed. Switching to secondary target: S-10 Pest. Machine disabled. Lgt. Ion Engine fries itself beyond repair. Subatomizers dissect the Lgt. Assault Rifle. Lgt. Assault Rifle fries itself beyond repair. S-10 Pest destroyed. Flight Unit fries itself beyond repair. Lgt. Assault Rifle fries itself beyond repair. Flight Unit fries itself beyond repair. J0-RZL(u) builds Twisted Machinery. Aluminum Leg destroyed. Acquired 18 matter. Assault Rifle destroyed. Aluminum Leg destroyed. Hover Unit destroyed. Lgt. Ion Engine destroyed. Particle Gun destroyed. Map ----- +----------------------------------------------------+ | ??????????????????????????? "#?????????????????? | | ?????????????????????#?????# "#?????????????????? | | ??????????????????????????? #?????????????????? | | ???????????????????????##### #?#???????????????? | | ??????????????????????## # ##?????? ??????????? | | ???????????????######## #??? ?????????????? | | ????????????? ## ##??? ???#?????????? | | ???????????? " " ## #???????#???????#??? | | ?????????????? " """"" #####? ? #????????????? | | ????????????? """" """ # #?????#???????? | | ???????????#??# " "" ###???????????? | | ?????????????#" " ## ## ## ##?#????????? | | ???????????? ## ## ##??#?## ##?????????? | | ?????????????????# ??# #??#### #?????????? | | ?????????????????#?#?## #### ## ##????????? | | ??????????????????????### ## #????????? | | ????????????????????????## ##????#??? | | ?????????????????????????# ## #???????? | | ??????????????#??????????## ### ## #???????? | | ????????????????????#??#??###?# #### ##???????? | | ?????????????????#?????###########?# ##??#?????? | | ???????????????????????#""" "##?### #?????????? | | ????????????????????#??#" #??# # ##????????? | | ???????????????????#???#" #### ##???????? | | ??????????????????????##""t R #???????? | | ??????????????????????#<%@ R #???????? | | ??????????????????????## "t % % #???##??? | | ???????????????????????# ## #??????? | | ???????????????????????# ### #??????? | | ???????????????????????#""" "#?# ######??????? | | ???????????????????????######### ##????#???#??? | | ?????????????????????????????## #????????????? | | ??????????????????#????#??#?? ????????????? | | ???????????????????????????? %#?????#?????? | | ???????????????????????#???## ######???????#?#?? | | ???????????????????????????? #?????????????????? | | ??????????????????????????? ?????#????????????? | | ???????????????????????????? ???????????????????? | | ?????????????????????????????????????????????????? | | ?????????????????????????????????????????????????? | | ?????????????????????????????????????????????????? | | ?????????????????????????????????????????????????? | | ?????????????????????????????????????????????????? | | ?????????????????????????????????????????????????? | | ?????????????????????????????????????????????????? | | ?????????????????????????????????????????????????? | | ?????????????????????????????????????????????????? | | ?????????????????????????????????????????????????? | | ?????????????????????????????????????????????????? | | ?????????????????????????????????????????????????? | +----------------------------------------------------+ Best States ------------- Heat Dissipation 25 Energy Generation 14 Energy Capacity 250 Matter Stores 300 Matter Capacity 300 Sight Range 16 Terrain Scan Range 16 Terrain Scan Density 10 Evasion (%) 55 Item Schematics ----------------- None Robot Schematics ------------------ None Fabricated ------------ Nothing Alien Tech Used ----------------- None Achievements -------------- None Challenges ------------ None Game ------ Seed AssaultModifiedBrace Manual? 0 Play Time 00:18:46 Cumulative 30.4 hours Start 2024.04.10 @ 11:14:25 End 2024.04.10 @ 11:33:23 Sessions 1 Manual Loads 0 Difficulty Rogue Special Mode None Game No. 48 Rogue 48 Adventurer 0 Explorer 0 Win Type - Total 0 Types 0/0/0/0/0/0/0/0/0 Lore% 21 Gallery% 35 Achievement% 29 Wizard Run 0 Options --------- Layout 1 ASCII 0 Keyboard 0 Movement Mouse Keybinds 0 Fullscreen 1 Font 32/SmallcapsGlow Map View 50x35 Zoom Use 0% Tactical HUD 0 Map Filters NONE Filters NONE Steam 1 RUN: c09fc4bb-92d6-467a-b445-8ec4acbf5d49